Cogmind - Beta 13 @@@ ROGUE MODE // 2024.04.10 @ 11:31:27 Player: MO-55 Result: Destroyed by YV-GQV(R) with Subdweller Machine Gun Performance ------------- Evolutions (0) 0 Regions Visited (2) 400 Robots Destroyed (19) 95 Value Destroyed (410) 410 Prototype IDs (0) 0 Alien Tech Used (0) 0 Bonus (0) 0 TOTAL SCORE: 905 Bonus ------- None Cogmind --------- Core Integrity 0/250 Matter 300/300 Energy 150/250 System Corruption 0% Temperature Hot (288) Movement Treading (160) Location -10/Subcaves Parts ------- > --- POWER (1) -------- Ion Engine > --- PROPULSION (2) --- Light Treads Spiked Treads > --- UTILITY (2) ------ Small Storage Unit Light Armor Plating > --- WEAPON (2) ------- Subdweller Beam Cannon Subdweller Beam Cannon > --- INVENTORY (8) ---- Ion Engine Light Treads Light Treads Light Treads Light Armor Plating Light Armor Plating Subdweller Machine Gun Grenade Launcher Peak State ------------ > --- POWER ------------ Ion Engine > --- PROPULSION ------- Light Treads Spiked Treads > --- UTILITY ---------- Small Storage Unit Light Armor Plating > --- WEAPON ----------- Subdweller Beam Cannon Subdweller Beam Cannon > --- INVENTORY -------- Ion Engine Light Treads Light Treads Light Treads Light Treads Light Armor Plating Light Armor Plating Grenade Launcher [Rating: 10] Favorites ----------- Power Ion Engine Engine Ion Engine Propulsion Light Treads Treads Light Treads Leg Aluminum Leg Utility Small Storage Unit Storage Small Storage Unit Protection Light Armor Plating Weapon Subdweller Beam Cannon Energy Gun EM Pulse Gun Energy Cannon Subdweller Beam Cannon Ballistic Gun Assault Rifle Launcher Grenade Launcher Build | -11 -10 -10 ------- Run | Yrd Mat Sub Slots Evolved . | . . . Power . | . . . Propulsion . | . . . Utility . | . . . Weapon . | . . . Parts Attached 17 | 6 7 4 Power 3 | 1 2 . Engine 3 | 1 2 . Core . | . . . Reactor . | . . . Propulsion 6 | 2 2 2 Treads 4 | . 2 2 Leg 2 | 2 . . Wheel . | . . . Hover . | . . . Flight . | . . . Utility 3 | 1 2 . Device . | . . . Storage 1 | 1 . . Processor . | . . . Hackware . | . . . Protection 2 | . 2 . Artifact . | . . . Weapon 5 | 2 1 2 Energy Gun 1 | 1 . . Energy Cannon 2 | . . 2 Ballistic Gun 1 | 1 . . Ballistic Cannon . | . . . Launcher 1 | . 1 . Special Weapon . | . . . Impact Weapon . | . . . Slashing Weapon . | . . . Piercing Weapon . | . . . Special Melee Weapon . | . . . Unidentified Prototypes . | . . . Parts Lost 2 | . 2 . Power . | . . . Propulsion . | . . . Utility . | . . . Weapon 2 | . 2 . Highest Loss Streak 1 | . 1 . To Critical Strikes . | . . . Average Slot Usage (%) 80 | . 75 97 Engine 14 | . 14 14 Treads 18 | . 16 28 Leg 9 | . 11 . Storage 14 | . 14 14 Protection 8 | . 7 14 Energy Gun 4 | . 5 . Energy Cannon 5 | . . 23 Ballistic Gun 3 | . 5 . Naked Turns . | . . . Heaviest Build 29 | 14 16 29 Greatest Support 40 | 20 40 40 Greatest Overweight (x) . | . . . Average Overweight (x) . | . . . Largest Inventory Capacity 8 | 8 8 8 Average Capacity 7 | 6 8 8 Most Carried 8 | 5 8 8 Average Carried 7 | 3 7 7 Final Capacity 8 | 8 8 8 Final Carried 8 | 4 7 8 Class Distribution -------------------- 100% | Mutant Dominant Class ---------------- Mutant | -10/Materials Mutant | -10/Subcaves Resources | -11 -10 -10 ----------- Run | Yrd Mat Sub Matter Collected 400 | 194 156 50 Remotely . | . . . Salvage Created 390 | . 293 97 Parts 27 | . 26 1 Haulers Intercepted 1 | . 1 . Recyclers Shooed . | . . . Parts Field Recycled . | . . . Retrieved Matter . | . . . Parts Self-Destructed 4 | . . 4 Prevented . | . . . Kills | -11 -10 -10 ------- Run | Yrd Mat Sub Combat Hostiles Destroyed 18 | . 16 2 Melee 7 | . 7 . Guns 7 | . 7 . Cannons 2 | . . 2 AOE 2 | . 2 . Classes Destroyed 4 | . 3 1 Hauler 1 | . 1 . Swarmer 9 | . 9 . Grunt 7 | . 7 . Subdweller 2 | . . 2 Best Kill Streak 3 | . 3 1 Combat Bots Only 3 | . 3 1 Max Kills in Single Turn 2 | . 2 1 Gunslinging . | . . . Exploded 2 | . 2 . Melee 1 | . 1 . Uniques/NPCs Destroyed . | . . . Combat | -11 -10 -10 -------- Run | Yrd Mat Sub Hostile Shots Fired 129 | . 109 20 Missed 38 | . 32 6 Damage Taken 1127 | . 819 308 Core 258 | . 172 86 Absorbed by Shields . | . . . Core Remaining (%) 100 | 100 . . Volleys Fired 39 | . 26 13 Largest 2 | . 2 2 Hottest 160 | . 60 160 Shots Fired 75 | . 51 24 Gun 51 | . 51 . Cannon 24 | . . 24 Launcher . | . . . Special . | . . . Kinetic 25 | . 25 . Thermal 24 | . . 24 Explosive . | . . . Electromagnetic 26 | . 26 . Robot Hit Streak 13 | . 5 13 Robot Miss Streak 3 | . 3 2 Penetration Max . | . . . Secondary Targets . | . . . Shots Hit Robots 45 | . 28 17 Core Hits 18 | . 16 2 Critical Kills . | . . . Critical Parts Destroyed . | . . . Critical Strikes 1 | . 1 . Corrupt 1 | . 1 . Melee Attacks . | . . . Impact . | . . . Slashing . | . . . Piercing . | . . . Sneak Attacks . | . . . Combat Hostiles . | . . . Follow-up Attacks . | . . . Damage Inflicted 991 | . 531 460 Guns 364 | . 364 . Cannons 460 | . . 460 Explosions 88 | . 88 . Melee . | . . . Ramming 79 | . 79 . Kinetic 149 | . 149 . Thermal 548 | . 88 460 Explosive . | . . . Electromagnetic 215 | . 215 . Impact . | . . . Slashing . | . . . Piercing . | . . . Highest Corruption . | . . . Average Corruption . | . . . Corruption Purged . | . . . Corruption Blocked . | . . . Overload Shots . | . . . Overflow Damage . | . . . Projectiles . | . . . Explosions . | . . . Melee . | . . . Knockbacks 1 | . 1 . Impact 1 | . 1 . Kinetic . | . . . Secondary . | . . . Self-Inflicted Damage 30 | . 30 . Shots 1 | . 1 . Rammed 42 | . 42 . Targets Rammed 49 | . 49 . Kicked . | . . . Crushed 7 | . 7 . Highest Temperature 288 | . 24 288 Average Temperature 62 | . 12 119 Received Heat Transfer 312 | . 288 24 Siege Activations . | . . . Robots Corrupted . | . . . Combat Hostiles . | . . . Parts Fried . | . . . Impact Corruptions . | . . . Robots Melted . | . . . Combat Hostiles . | . . . Parts Melted 5 | . . 5 Heat Transferred 729 | . 100 629 Parts Sabotaged . | . . . Parts Stolen . | . . . Parts Stripped . | . . . Power Chain Reactions 1 | . 1 . Alert | -11 -10 -10 ------- Run | Yrd Mat Sub Peak Influence 168 | . 168 . Initial . | . . . Average 49 | . 51 . Maximum Alert Level . | . . . Low Security (%) 100 | 100 100 . Level 1 . | . . . Level 2 . | . . . Level 3 . | . . . Level 4 . | . . . Level 5 . | . . . High Security . | . . . Max Security . | . . . Squads Dispatched 2 | . 2 . Investigation 1 | . 1 . Extermination . | . . . Reinforcement 1 | . 1 . Assault . | . . . Garrison . | . . . Intercept . | . . . Searches Triggered . | . . . Construction Impeded . | . . . Haulers Reinforced . | . . . Active Scanning Responses . | . . . Cargo Convoy Interrupts . | . . . Stealth | -11 -10 -10 --------- Run | Yrd Mat Sub Distress Signals 1 | . 1 . Communications Jammed . | . . . Distress Signals . | . . . Times Spotted 27 | . 24 3 Peak Tracking Total 4 | . 4 2 Tactical Retreats . | . . . Traps | -11 -10 -10 ------- Run | Yrd Mat Sub Traps Triggered 1 | . 1 . Indirectly . | . . . Trap Hack Attempts . | . . . Triggered . | . . . Disarmed . | . . . Reprogrammed . | . . . Reused . | . . . Traps Extracted . | . . . Installed . | . . . Triggered . | . . . Machines | -11 -10 -10 ---------- Run | Yrd Mat Sub Machines Disabled . | . . . Max in Single Turn . | . . . Machines Repaired . | . . . Machines Dismantled . | . . . Machines Sabotaged . | . . . Overloaded Fab Kills . | . . . Hacking | -11 -10 -10 --------- Run | Yrd Mat Sub Machines Accessed 3 | . 3 . Terminals 3 | . 3 . Fabricators . | . . . Repair Stations . | . . . Recycling Units . | . . . Scanalyzers . | . . . Garrison Access . | . . . Total Hacks 8 | . 8 . Successful 2 | . 2 . Failed 6 | . 6 . Catastrophic 2 | . 2 . Database Lockouts . | . . . Manual 6 | . 6 . Terminals 8 | . 8 . Fabricators . | . . . Repair Stations . | . . . Recycling Units . | . . . Scanalyzers . | . . . Garrison Access . | . . . Terminal Hacks 1 | . 1 . Unreport Threat 1 | . 1 . Fabricator Hacks . | . . . Repair Station Hacks . | . . . Recycling Unit Hacks . | . . . Scanalyzer . | . . . Garrison Access Hacks . | . . . Unauthorized Hacks 1 | . 1 . Terminals 1 | . 1 . Botnet 1 | . 1 . Fabricators . | . . . Repair Stations . | . . . Recycling Units . | . . . Scanalyzers . | . . . Garrison Access . | . . . Data Cores Recovered . | . . . Used . | . . . Hacking Detections 3 | . 3 . Full Trace Events 2 | . 2 . Feedback Events . | . . . Feedback Blocked . | . . . Robot Schematics Acquired . | . . . Robots Built . | . . . Authchips . | . . . Time . | . . . Total Robot Build Rating . | . . . Part Schematics Acquired . | . . . Parts Built . | . . . Authchips . | . . . Time . | . . . Total Part Build Rating . | . . . Parts Repaired . | . . . Time . | . . . Parts Recycled . | . . . Recycled Matter . | . . . Retrieved Matter . | . . . Retrieved Components . | . . . Parts Scanalyzed . | . . . Part Schematics Acquired . | . . . Parts Damaged . | . . . Bothacking | -11 -10 -10 ------------ Run | Yrd Mat Sub Used RIF Installer . | . . . Robots Hacked . | . . . Non-combat . | . . . Combat . | . . . Robot Hacks Applied . | . . . Relay Couplers Released . | . . . Fabnet Peak Effective % . | . . . Robots Rewired . | . . . Allies Hacked . | . . . Hacks Repelled . | . . . Allies | -11 -10 -10 -------- Run | Yrd Mat Sub Total Allies . | . . . Largest Group . | . . . Highest-Rated Group . | . . . Highest-Rated Ally . | . . . Total Orders . | . . . Ally Attacks . | . . . Total Damage . | . . . Kills . | . . . Allies Corrupted . | . . . Allies Melted . | . . . Intel | -11 -10 -10 ------- Run | Yrd Mat Sub Robot Analysis Total . | . . . Derelict Logs Recovered . | . . . Drone Launches . | . . . Drone Recoveries . | . . . Exploration | -11 -10 -10 ------------- Run | Yrd Mat Sub Turns Passed 2064 | 64 1548 452 Spaces Moved 873 | 47 579 247 Core 9 | 9 . . Treads 411 | . 164 247 Legs 453 | 38 415 . Wheels . | . . . Hover . | . . . Flight . | . . . Fastest Speed 50 | 50 120 160 Average Speed 138 | 106 131 160 Slowest Speed 160 | 120 160 160 Overloaded Moves . | . . . Propulsion Burnouts . | . . . Robots Hopped . | . . . Cave-ins Triggered . | . . . Exploration Rate (%) 34 | 3 80 19 Regions Visited 2 Branch Regions 1 Pre-discovered Areas . | . . . Known Exits Taken . | . . . Unknown Exits Taken 2 | 1 1 . Scrap Searched 4 | . . 4 Spaces Dug . | . . . Terrain Destroyed 7 | . 6 1 Melee . | . . . Projectile 1 | . . 1 AOE 6 | . 6 . Terrain Rammed . | . . . Walls Destroyed . | . . . Machines Disabled . | . . . Actions | -11 -10 -10 --------- Run | Yrd Mat Sub Total 1627 | 58 1287 282 Wait 625 | . 611 14 Move 871 | 46 578 247 Hop . | . . . Pick Up 15 | 5 9 1 Fast Attach 9 | 6 1 2 Attach 1 | . 1 . Detach 1 | . . 1 Swap 7 | . 5 2 Drop 10 | 1 7 2 Fire 39 | . 26 13 Melee . | . . . Ram . | . . . Kick . | . . . Crush 49 | . 49 . Escape Stasis . | . . . Rewire . | . . . Trap . | . . . Miscellaneous . | . . . Route ------- -11/Scrapyard -10/Materials (discovered 5 exits: [*Mat x3] / [*Min] / [*Sub]) -10/Subcaves History --------- Turn | Location | Event 9 | -11/Scrapyard | Discovered new exit (range 14) 65 | -11/Scrapyard | Entered Materials 257 | -10/Materials | Discovered new exit (range 11) 319 | -10/Materials | Discovered new exit (range 15) 326 | -10/Materials | Build established: Mutant 534 | -10/Materials | Discovered new exit (range 15) 675 | -10/Materials | Discovered new exit (range 11) 892 | -10/Materials | Core integrity fell below 50% 1575 | -10/Materials | Discovered new exit (range 8) 1613 | -10/Materials | Entered Subcaves 1701 | -10/Subcaves | Disturbed a concealed Subdweller 1709 | -10/Subcaves | Core integrity fell below 20% 1959 | -10/Subcaves | Shifting Twisted Machinery released Sub. Machine Gun 1995 | -10/Subcaves | Shifting Twisted Machinery released Sub. Laser 2065 | -10/Subcaves | Destroyed by YV-GQV(R) with Subdweller Machine Gun Last Messages --------------- 01711_ Sub. Power Source melted. 01711_ 5J-2SR(R) destroyed. 01712_ Subatomizers dissect the Sub. Monowheel. 01715_ Dropped Lgt. Treads. 01717_ Searching scrap... 01717_ Found Battle Cannon. 01717_ Found 15 Matter. 01718_ Acquired 15 matter. 01718_ Acquired 5 matter. 01724_ Subatomizers dissect the Sub. Monowheel. 01947_ H4-EU3(u) tweaks Twisted Machinery. 01950_ H4-EU3(u) builds Twisted Machinery. Sub. Machine Gun falls loose from the Twisted Machinery. 01967_ Dropped Lgt. Treads. 01967_ Acquired Sub. Machine Gun. Sub. Laser falls loose from the Twisted Machinery. 02059_ Destroyed Scrap Shield. 02062_ AX-5GS(R) destroyed. Map ----- +----------------------------------------------------+ | | | | | | | | | | | | | | | | | | | | | ?????????????????????????????????????????????????? | | ?????????????????????????????????????????????????? | | ?????????????????????????????????????????????????? | | ?????????????????????????????????????????????????? | | ?????????????????????????????????????????????????? | | ?????????????????????????????????????????????????? | | ?????????????????????????????????????????????????? | | ?????????????????????????????????????????????????? | | ?????????????????????????????????????????????????? | | ?????????????????????????????????????????????????? | | ?????????????????????????????????????????????????? | | ?????????????????????????????????????????????????? | | ?????????????????????????????????????????????????? | | ?????????????????????????????????????????????????? | | ??????????????##???????######?????########???????? | | ??????????????# ???### @# #???### " ######??? | | ?????????????## ##%& #???# #""##?? | | ????????????# !R #?### """"" "" ##? | | ?????? ### #### " ### " " ## | | ?????? ##?# ## " ####"" "" # | | ???????" # # " ##### [" #?#"" "## | | ???????????##??#""" ?# ### """""##" "### | | ??????????????#""""??#" ##?#""""" ### "## | | ?????????????? """??## #?? """ """# "" | | ?????????????? #""????########?? " "" " " " | | ????????????????? ????????????? "" " " | | ??????????????????????????????? ##### # " = " | | ??????????????????????????????? ##???####" " | | ?????????????????????????????? #????????##" ##"# | | ?????????????????????????????? ??????????## ?### | | ?????????????????????????????? ???????????###???? | | ?????????????????????????????????????????????????? | | ?????????????????????????????????????????????????? | | ?????????????????????????????????????????????????? | | ?????????????????????????????????????????????????? | | ?????????????????????????????????????????????????? | | ?????????????????????????????????????????????????? | | ?????????????????????????????????????????????????? | | ?????????????????????????????????????????????????? | | ?????????????????????????????????????????????????? | +----------------------------------------------------+ Best States ------------- Heat Dissipation 25 Energy Generation 10 Energy Capacity 250 Matter Stores 300 Matter Capacity 300 Sight Range 16 Terrain Scan Density 10 Armor Coverage 150 Evasion (%) 55 Recoil Reduction 2 Item Schematics ----------------- None Robot Schematics ------------------ None Fabricated ------------ Nothing Alien Tech Used ----------------- None Achievements -------------- None Challenges ------------ None Game ------ Seed DataSupersonicStorage Manual? 0 Play Time 00:12:57 Cumulative 73.5 hours Start 2024.04.10 @ 11:20:53 End 2024.04.10 @ 11:31:27 Sessions 1 Manual Loads 0 Difficulty Rogue Special Mode None Game No. 66 Rogue 66 Adventurer 0 Explorer 0 Win Type - Total 1 Types 1/0/0/0/0/0/0/0/0 Lore% 37 Gallery% 53 Achievement% 45 Wizard Run 0 Options --------- Layout 2 ASCII 0 Keyboard 0 Movement Mouse Keybinds 0 Fullscreen 2 Font 32/SmallcapsGlow Map View 50x44 Zoom Use 0% Tactical HUD 1 Map Filters NONE Filters NONE Steam 1 RUN: f17e55d7-480c-4c67-a07c-acf512d07496